bitfinex-derivatives/quotes_ETHF0:USTF0_20250503
["timestamp","ask_amount","ask_price","bid_price","bid_amount"]
[1746301951256,1.08739,1838.8,1838.7,1.6451]
[1746301951457,10.6643,1838.9,1838.3,7.18243734]
[1746301951657,1.08755,1838.6,1838.3,10.68371734]
[1746301951858,1.08757,1838.5,1838.4,1.5938]
[1746301952759,1.91144,1838.6,1838.4,2.68141]
[1746301952959,1.91145,1838.6,1838.4,1.5938]
[1746301953160,1.91145,1838.6,1838.5,1.5938]
[1746301954060,1.91145,1838.6,1838.5,2.4139]
[1746301961464,1.08755,1838.6,1838.5,2.4139]
[1746301967368,1.08774,1838.2,1838.1,7.18243734]
[1746301967757,1.08774,1838.2,1838.1,8.89233734]
[1746301968167,3.63714,1838.2,1838.1,8.89233734]
[1746301971073,3.63714,1838.2,1838.1,1.7099]
[1746301971259,1.08774,1838.2,1838.1,1.7099]
[1746301971973,1.08774,1838.3,1838.1,1.7099]
[1746301972170,1.08774,1838.3,1838.2,0.8627]
[1746301977563,1.08774,1838.3,1838.2,2.6066]
[1746301984282,1.08774,1838.3,1838.2,1.7439]
[1746301984477,2.68064,1838.3,1838.2,1.7439]
[1746301986278,1.08774,1838.3,1838.2,2.83164]
[1746301986482,1.08762,1838.5,1838.3,1.08766]
[1746301986671,1.87472,1838.5,1838.4,2.5304]
[1746301987372,3.48542,1838.5,1838.4,2.5304]
[1746301996487,1.87472,1838.5,1838.4,2.5304]
[1746301996792,1.08762,1838.5,1838.4,2.5304]
[1746301997392,2.80822,1838.5,1838.4,2.5304]
[1746301997893,1.08762,1838.5,1838.4,2.5304]
[1746301999283,1.08762,1838.5,1838.4,3.32]
[1746302001490,1.08762,1838.5,1838.4,2.5304]
[1746302005604,1.08762,1838.5,1838.4,3.61803]
[1746302006204,3.2078,1838.8,1838.4,2.5304]
[1746302006402,1.08745,1838.7,1838.6,1.08745]
[1746302006595,1.08745,1838.7,1838.6,1.94385]
[1746302009410,1.08745,1838.7,1838.6,3.68475]
[1746302009608,3.2078,1839.0,1838.6,11.0983]
[1746302009812,1.0873,1839.0,1838.9,1.08733]
[1746302010107,2.75666,1839.2,1839.1,1.08721]
[1746302010319,0.8192,1839.3,1839.1,1.08721]
[1746302010507,1.90629,1839.3,1839.2,1.7409]
[1746302010706,5.11409,1839.3,1839.2,1.7409]
[1746302011312,1.6695,1839.4,1839.2,1.7409]
[1746302011615,1.08709,1839.3,1839.2,5.2419]
[1746302012512,5.11398,1839.5,1839.3,1.08706]
[1746302012713,5.11398,1839.5,1839.3,3.56406]
[1746302012912,1.08703,1839.4,1839.3,1.6747]
[1746302013411,2.79003,1839.4,1839.3,1.6747]
[1746302014204,1.08709,1839.3,1839.2,3.501]
[1746302014404,2.79009,1839.3,1839.2,3.501]
[1746302014612,1.703,1839.3,1839.2,4.58815]
[1746302014817,1.08707,1839.4,1839.2,6.23525]
[1746302015115,6.78112,1839.5,1839.3,2.73419]
[1746302015308,6.78112,1839.5,1839.4,1.6471]
[1746302015509,6.78108,1839.5,1839.4,1.6471]
[1746302015711,5.11398,1839.5,1839.4,1.6471]
[1746302016010,4.027,1839.5,1839.4,1.6471]
[1746302016210,5.11398,1839.5,1839.4,1.6471]
[1746302017915,1.90618,1839.5,1839.4,1.6471]
[1746302018514,5.11398,1839.5,1839.4,1.6471]
[1746302019917,5.1478734,1839.5,1839.4,1.6471]
[1746302020821,1.08703,1839.4,1839.3,0.8088]
[1746302021213,2.78623,1839.4,1839.3,0.8088]
[1746302021922,2.8201234,1839.4,1839.3,2.5133]
[1746302023422,1.08709,1839.3,1839.2,3.501]
[1746302023609,2.78629,1839.3,1839.2,3.501]
[1746302024015,2.8201834,1839.3,1839.2,3.501]
[1746302025622,2.71789,1839.2,1838.8,12.12076734]
[1746302025823,1.08727,1839.0,1838.9,3.503]
[1746302026023,1.1211634,1839.0,1838.9,6.0274]
[1746302028527,2.7018634,1839.0,1838.9,6.0274]
[1746302028918,1.08739,1838.8,1838.7,8.00553734]
[1746302029112,1.1212834,1838.8,1838.7,14.99848734]
[1746302029519,1.1212834,1838.8,1838.7,7.81605]
[1746302032930,1.5807,1839.0,1838.7,7.81605]
[1746302033126,1.08733,1838.9,1838.8,2.72458]
[1746302033322,1.08733,1838.9,1838.8,1.6372]
[1746302033518,1.08733,1838.9,1838.8,2.72459]
[1746302035433,1.08733,1838.9,1838.8,1.6372]
[1746302041038,1.08739,1838.8,1838.7,4.3034]
[1746302041231,3.59419,1838.8,1838.7,4.3034]
[1746302043741,3.59419,1838.8,1838.7,5.877]
[1746302044546,1.08739,1838.8,1838.7,6.96445]
[1746302046543,1.08735,1838.9,1838.8,1.08734]
[1746302046742,1.08735,1838.9,1838.8,1.93024]
[1746302051256,1.08739,1838.8,1838.7,8.59861]
[1746302051443,1.08731,1839.0,1838.9,1.08733]
[1746302051753,1.08726,1839.1,1839.0,1.08725]
[1746302055050,1.08726,1839.1,1839.0,1.91405]
[1746302055551,1.08726,1839.1,1839.0,5.40605]
[1746302056051,3.6044,1839.2,1839.1,1.08721]
[1746302061454,2.5172,1839.2,1839.1,2.76561]
[1746302061649,1.08721,1839.1,1839.0,3.492]
[1746302061950,1.08727,1839.0,1838.9,17.9644489]
[1746302062345,2.81787,1839.0,1838.9,17.9644489]
[1746302062947,1.7306,1839.0,1838.9,19.0517789]
[1746302063251,1.94762,1839.1,1839.0,1.08727]
[1746302063454,1.94762,1839.1,1839.0,2.75137]
[1746302063645,3.69282,1839.1,1839.0,2.75137]
[1746302064152,2.6056,1839.1,1839.0,2.75137]
[1746302065855,3.69281,1839.1,1839.0,2.75137]
[1746302066445,1.08721,1839.1,1839.0,2.75137]
[1746302066652,1.90899,1839.2,1839.1,1.08721]
[1746302066841,1.90899,1839.2,1839.1,1.6775]
[1746302067154,1.90899,1839.2,1839.1,2.76471]
[1746302069354,3.51659,1839.2,1839.1,2.76471]
[1746302069858,3.51659,1839.2,1839.1,1.6775]
[1746302072955,1.08721,1839.1,1839.0,11.49933734]
[1746302073255,2.78791,1839.1,1839.0,13.21893734]
[1746302073453,2.78791,1839.1,1839.0,10.67443734]
[1746302075458,2.78791,1839.1,1839.0,3.492]
[1746302079158,2.78791,1839.1,1839.0,5.1452]
[1746302079864,2.78791,1839.1,1839.0,6.23247]
[1746302080165,1.08721,1839.1,1839.0,6.23247]
[1746302080962,1.08721,1839.1,1839.0,6.8401]
[1746302083163,1.08721,1839.1,1839.0,5.9728]
[1746302083364,2.73761,1839.1,1839.0,5.9728]
[1746302083671,2.73761,1839.1,1839.0,5.1452]
[1746302085562,2.73761,1839.1,1839.0,3.492]
[1746302085755,2.73761,1839.1,1839.0,5.2309]
[1746302086965,1.08721,1839.1,1839.0,5.2309]
[1746302090966,1.08721,1839.1,1839.0,12.41333734]
[1746302092467,1.08721,1839.1,1839.0,13.20653734]
[1746302095272,1.08721,1839.1,1839.0,12.41333734]
[1746302095474,2.73651,1839.1,1839.0,12.41333734]
[1746302096667,2.73651,1839.1,1839.0,10.67443734]
[1746302097274,1.08721,1839.1,1839.0,7.18243734]
[1746302097468,1.08721,1839.1,1839.0,1.6312]
[1746302097673,1.08721,1839.1,1839.0,2.4369]
[1746302099677,1.08721,1839.1,1839.0,1.6312]
[1746302099874,2.69111,1839.1,1839.0,1.6312]
[1746302100974,2.69111,1839.1,1839.0,8.81363734]
[1746302105073,1.08721,1839.1,1839.0,8.81363734]
[1746302105274,1.08721,1839.1,1839.0,9.68453734]
[1746302106269,1.08707,1839.4,1839.2,1.08715]
[1746302106471,1.08704,1839.4,1839.3,2.4518]
[1746302106768,1.08704,1839.4,1839.3,3.3227]
[1746302109966,1.08704,1839.4,1839.3,10.49991063]
[1746302111476,1.08704,1839.4,1839.3,7.17721063]
[1746302111666,3.58234,1839.4,1839.3,7.17721063]
[1746302112676,3.58234,1839.4,1839.2,3.48]
[1746302112677,1.08709,1839.3,1839.2,3.48]
[1746302112877,1.89569,1839.3,1839.2,5.0649]
[1746302113069,3.62139,1839.3,1839.2,5.0649]
[1746302113577,6.82919,1839.3,1839.2,3.48]
[1746302113976,1.08715,1839.2,1839.1,7.17721063]
[1746302114275,2.81285,1839.2,1839.1,7.17721063]
[1746302114475,2.81285,1839.2,1839.1,8.76211063]
[1746302115888,2.81285,1839.2,1839.1,1.5849]
[1746302119275,1.08721,1839.1,1839.0,7.17721063]
[1746302119482,3.66561,1839.1,1839.0,7.17721063]
[1746302119779,3.66561,1839.1,1839.0,8.85141063]
[1746302120989,1.08721,1839.1,1839.0,8.85141063]
[1746302121881,1.88051,1839.1,1839.0,8.85141063]
[1746302123585,1.88051,1839.1,1839.0,1.6742]
[1746302125078,1.08727,1839.0,1838.9,10.65621063]
[1746302125284,2.71417,1839.0,1838.9,12.26811063]
[1746302128591,1.08727,1839.0,1838.9,13.35544063]
[1746302128790,1.08727,1839.0,1838.9,13.06111063]
[1746302128983,1.08727,1839.0,1838.9,14.14844063]
[1746302129182,1.08727,1839.0,1838.9,13.06111063]
[1746302129986,1.08727,1839.0,1838.9,14.14844063]
[1746302131095,1.08727,1839.0,1838.9,23.39020036]
[1746302133893,1.08726,1839.1,1839.0,1.08727]
[1746302134083,1.08726,1839.1,1839.0,2.70957]
[1746302136401,1.08726,1839.1,1839.0,19.13256068]
[1746302139396,1.08726,1839.1,1839.0,18.04529068]
[1746302139598,3.50186,1839.1,1839.0,9.89080095]
[1746302139991,3.50186,1839.1,1839.0,8.80353095]
[1746302140290,3.50186,1839.1,1839.0,9.89080095]
[1746302142402,1.90356,1839.1,1839.0,9.89080095]
[1746302145604,1.08726,1839.1,1839.0,9.89080095]
[1746302145896,1.0872,1839.2,1839.1,1.08721]
[1746302146103,1.0872,1839.2,1839.1,4.31191]
[1746302149602,1.0872,1839.2,1839.1,3.2247]
[1746302151304,1.0872,1839.2,1839.1,2.4218]
[1746302151504,1.08721,1839.1,1839.0,11.47626095]
[1746302151708,2.74281,1839.1,1839.0,11.47626095]
[1746302152305,2.74281,1839.1,1839.0,10.38903095]
[1746302152498,2.74281,1839.1,1839.0,13.09260095]
[1746302153202,1.89651,1839.1,1839.0,13.09260095]
[1746302155706,1.89651,1839.1,1839.0,25.94523881]
[1746302159601,1.89651,1839.1,1839.0,22.73743881]
[1746302160108,1.08721,1839.1,1839.0,22.73743881]
[1746302162108,1.08721,1839.1,1839.0,26.20943881]
[1746302163010,1.08721,1839.1,1839.0,25.12216881]
[1746302163201,1.94411,1839.1,1839.0,25.12216881]
[1746302169613,1.94411,1839.1,1839.0,23.50586881]
[1746302170408,1.94411,1839.1,1839.0,19.91851471]
[1746302170611,1.94411,1839.1,1839.0,21.51881471]
[1746302173113,1.94411,1839.1,1839.0,22.60608471]
[1746302173408,1.94411,1839.1,1839.0,21.51881471]
[1746302175915,1.94411,1839.1,1839.0,22.60608471]
[1746302176114,1.94411,1839.1,1839.0,23.43398471]
[1746302177219,0.8463,1839.3,1839.1,1.08718]
[1746302177419,0.831,1839.3,1839.2,1.7293]
[1746302177718,1.91809,1839.3,1839.2,1.7293]
[1746302178518,6.75664,1839.3,1839.0,19.91851471]
[1746302178711,1.08721,1839.1,1839.0,19.91851471]
[1746302179119,1.87511,1839.1,1839.0,19.91851471]
[1746302179316,3.62041,1839.1,1839.0,19.91851471]
[1746302179517,3.62041,1839.1,1839.0,17.82068948]
[1746302180217,3.62041,1839.1,1839.0,18.90795948]
[1746302180516,3.62041,1839.1,1839.0,20.52185948]
[1746302181716,3.62041,1839.1,1839.0,19.43458948]
[1746302182013,3.62041,1839.1,1839.0,30.22793101]
[1746302182219,3.62041,1839.1,1839.0,16.96651153]
[1746302182419,3.62041,1839.1,1839.0,12.40724153]
[1746302183319,3.62041,1839.1,1839.0,13.49451153]
[1746302183517,3.62041,1839.1,1839.0,12.40724153]
[1746302184523,3.62041,1839.1,1839.0,10.79334153]
[1746302184722,3.62041,1839.1,1839.0,16.45475451]
[1746302186422,8.62041,1839.1,1839.0,15.29567451]
[1746302186620,11.82821,1839.1,1839.0,15.29567451]
[1746302188723,11.82821,1839.1,1838.7,18.13534825]
[1746302188724,1.08739,1838.8,1838.7,7.19591097]
[1746302189217,1.08739,1838.8,1838.7,8.82591097]
[1746302189420,2.67229,1838.8,1838.7,8.82591097]
[1746302191022,2.67229,1838.8,1838.7,1.63]
[1746302194628,1.08751,1838.6,1838.5,12.29961097]
[1746302194817,1.08751,1838.6,1838.5,14.01141097]
[1746302197323,1.08751,1838.6,1838.5,15.09898097]
[1746302198426,1.08751,1838.6,1838.5,7.90307]
[1746302200120,0.8651,1838.8,1838.5,7.90307]
[1746302200325,1.08748,1838.7,1838.6,2.70036]
[1746302206429,1.08748,1838.7,1838.6,1.6129]
[1746302219539,1.08748,1838.7,1838.6,2.70041]
[1746302227940,1.08739,1838.9,1838.8,1.08739]
[1746302228540,1.08739,1838.9,1838.8,3.50909]
[1746302228836,5.14311,1839.0,1838.9,1.08733]
[1746302229044,5.14311,1839.0,1838.9,3.53093]
[1746302230243,5.14311,1839.0,1838.9,2.4436]
[1746302230444,5.14311,1839.0,1838.9,1.605]
[1746302231752,1.93531,1839.0,1838.9,1.605]
[1746302239052,1.08733,1838.9,1838.8,3.471]
[1746302239254,1.08739,1838.8,1838.7,17.9892525]
[1746302239446,1.89189,1838.8,1838.7,17.9892525]
[1746302239753,3.48589,1838.8,1838.7,17.9892525]
[1746302241452,1.08745,1838.7,1838.6,8.85221097]
[1746302241646,2.69605,1838.7,1838.6,8.85221097]
[1746302244751,2.69605,1838.7,1838.6,9.93972097]
[1746302244955,1.08745,1838.7,1838.6,9.93972097]
[1746302245156,0.8045,1838.8,1838.6,9.66071097]
[1746302245357,1.89189,1838.8,1838.7,1.6093]
[1746302245549,1.89189,1838.8,1838.7,2.69675]
[1746302245750,1.08739,1838.8,1838.7,2.69675]
[1746302248163,1.08739,1838.8,1838.7,1.6093]
[1746302250663,1.08739,1838.8,1838.7,8.80959068]
[1746302252663,1.08739,1838.8,1838.7,9.89704068]
[1746302253767,1.08739,1838.8,1838.7,8.80959068]
[1746302253968,1.08739,1838.8,1838.7,9.89704068]
[1746302255370,2.5535,1838.9,1838.7,9.89704068]
[1746302255371,3.64088,1838.9,1838.8,1.08739]
[1746302255576,1.08731,1839.0,1838.9,1.08731]
[1746302255775,1.08731,1839.0,1838.9,0.8217]
[1746302255967,1.08731,1839.0,1838.9,2.5221]
[1746302256369,2.72131,1839.0,1838.9,2.5221]
[1746302256775,2.72131,1839.0,1838.9,1.7004]
[1746302275586,1.08733,1838.9,1838.8,4.2728]
[1746302275781,3.52523,1838.9,1838.8,5.8761]
[1746302275979,3.52523,1838.9,1838.8,6.96349]
[1746302281792,1.08733,1838.9,1838.8,5.8761]
[1746302281983,1.08733,1838.9,1838.8,6.6734]
[1746302282987,1.08733,1838.9,1838.8,7.76074]
[1746302284192,1.08733,1838.9,1838.8,14.96103068]
[1746302285495,1.08732,1839.0,1838.9,1.08732]
[1746302285681,1.08732,1839.0,1838.9,2.78292]
[1746302287394,1.08732,1839.0,1838.9,1.6956]
[1746302287595,2.77022,1839.0,1838.9,1.6956]
[1746302287797,2.77022,1839.0,1838.9,2.78293]
[1746302290290,2.77022,1839.0,1838.9,1.6956]
[1746302291796,2.77022,1839.0,1838.9,2.78293]
[1746302291990,2.77022,1839.0,1838.9,1.6956]
[1746302296096,2.77022,1839.0,1838.9,2.78293]
[1746302296899,1.08733,1838.9,1838.8,12.56043068]
[1746302297200,1.91653,1838.9,1838.8,14.13893068]
[1746302300600,1.91653,1838.9,1838.8,14.13898068]
[1746302300808,1.91653,1838.9,1838.8,13.05159068]
[1746302302205,1.91653,1838.9,1838.8,22.24259076]
[1746302302708,1.91653,1838.9,1838.8,23.32998076]
[1746302306311,1.91653,1838.9,1838.8,22.24259076]
[1746302307912,1.91653,1838.9,1838.8,23.32998076]
[1746302308514,1.91653,1838.9,1838.8,22.24259076]
[1746302317405,1.91653,1838.9,1838.8,18.77359076]
[1746302332932,1.91653,1838.9,1838.8,19.86098076]
[1746302333226,1.91653,1838.9,1838.8,20.73108076]
[1746302337737,1.91653,1838.9,1838.8,24.32413161]
[1746302340842,1.91653,1838.9,1838.8,23.23674161]
[1746302341851,1.91653,1838.9,1838.8,24.32413161]
[1746302342143,1.91653,1838.9,1838.8,23.23674161]
[1746302342331,1.91653,1838.9,1838.8,22.36664161]
[1746302343742,1.91653,1838.9,1838.8,18.77953351]
[1746302348443,1.91653,1838.9,1838.8,19.86692351]
[1746302350845,1.08733,1838.9,1838.8,19.86692351]
[1746302351047,1.08733,1838.9,1838.8,18.77953351]
[1746302351241,4.80533,1838.9,1838.8,18.77953351]
[1746302351744,4.80533,1838.9,1838.8,29.57287504]
[1746302353744,4.80533,1838.9,1838.8,30.66026504]
[1746302353945,4.80533,1838.9,1838.8,29.57287504]
[1746302354846,4.80533,1838.9,1838.8,30.66026504]
[1746302355043,4.80533,1838.9,1838.8,29.57287504]
[1746302356145,4.80533,1838.9,1838.8,18.77953351]
[1746302359651,13.01313,1838.9,1838.8,14.87071351]
[1746302359849,13.01313,1838.9,1838.7,10.79334153]
[1746302359850,1.08739,1838.8,1838.7,10.79334153]
[1746302360044,3.60799,1838.8,1838.7,7.81859153]
[1746302360246,12.32599,1838.8,1838.7,6.58698153]
[1746302362943,7.32599,1838.8,1838.7,6.58698153]
[1746302363847,1.08745,1838.7,1838.6,1.6182]
[1746302364050,1.08774,1838.2,1838.1,0.01971]
[1746302364251,1.08774,1838.2,1838.1,0.82781]
[1746302364451,1.08774,1838.2,1838.1,1.69791]
[1746302365049,4.80574,1838.2,1838.1,1.69791]
[1746302365555,4.80574,1838.2,1838.1,5.15891]
[1746302366454,4.80574,1838.2,1838.1,1.69791]
[1746302366656,4.80574,1838.2,1838.1,5.15891]
[1746302367454,4.80574,1838.2,1838.1,4.28881]
[1746302369956,4.80574,1838.2,1838.1,5.37661]
[1746302370155,1.08774,1838.2,1838.1,5.37661]
[1746302370457,1.08774,1838.2,1838.1,4.28881]
[1746302370655,1.08774,1838.2,1838.1,5.37661]
[1746302371056,1.08774,1838.2,1838.1,5.3569]
[1746302372451,1.08774,1838.2,1838.1,4.2691]
[1746302373046,4.80574,1838.2,1838.1,4.2691]
[1746302373752,4.80574,1838.2,1838.1,5.3569]
[1746302374153,4.8057,1838.3,1838.2,1.08774]
[1746302374460,4.8057,1838.3,1838.2,1.89174]
[1746302376954,3.718,1838.3,1838.2,1.89174]
[1746302377259,3.718,1838.3,1838.2,5.09954]
[1746302378163,1.08761,1838.5,1838.4,1.08763]
[1746302378353,1.08761,1838.5,1838.4,4.54863]
[1746302379163,4.80561,1838.5,1838.4,4.54863]
[1746302380963,4.80561,1838.5,1838.4,3.461]
[1746302381463,4.80561,1838.5,1838.4,5.924]
[1746302381663,4.80561,1838.5,1838.4,7.01163]
[1746302382368,4.80561,1838.5,1838.4,5.924]
[1746302383060,4.80561,1838.5,1838.4,5.12]
[1746302383565,4.80561,1838.5,1838.4,6.20763]
[1746302392679,4.80561,1838.5,1838.4,7.06443]
[1746302395280,5.59491,1838.5,1838.4,7.06443]
[1746302397382,5.59491,1838.5,1838.4,10.27223]
[1746302398184,5.59491,1838.5,1838.4,7.06443]
[1746302398483,3.718,1838.5,1838.4,7.06443]
[1746302399183,3.51704,1838.6,1838.5,1.08757]
[1746302399376,3.51704,1838.6,1838.5,2.72377]
[1746302400086,7.23504,1838.6,1838.5,2.72377]
[1746302401986,6.1475,1838.6,1838.5,2.72377]
[1746302402182,3.718,1838.6,1838.5,2.72377]
[1746302403090,3.718,1838.6,1838.5,6.57472]
[1746302403294,0.8279,1838.9,1838.8,1.08739]
[1746302403584,1.91523,1838.9,1838.8,4.54739]
[1746302403789,3.55113,1838.9,1838.8,3.46]
[1746302404190,7.26913,1838.9,1838.8,3.46]
[1746302404892,3.718,1838.9,1838.8,4.54739]
[1746302405189,3.718,1838.9,1838.8,7.06539]
[1746302405379,1.87863,1839.3,1839.2,1.08715]
[1746302405583,3.52073,1839.3,1839.2,4.54615]
[1746302406490,3.52073,1839.3,1839.2,6.21695]
[1746302406691,1.08708,1839.4,1839.3,1.08709]
[1746302406887,1.88678,1839.4,1839.3,2.75789]
[1746302407081,3.52888,1839.4,1839.3,2.75789]
[1746302407293,3.52888,1839.4,1839.3,1.6708]
[1746302407489,3.52888,1839.4,1839.3,2.75789]
[1746302407789,3.52888,1839.4,1839.3,1.6708]
[1746302409696,3.52888,1839.4,1839.3,2.75789]
[1746302409890,3.52888,1839.4,1839.3,1.6708]
[1746302410398,3.52888,1839.4,1839.3,2.75789]
[1746302410899,3.52888,1839.4,1839.3,1.6708]
[1746302411794,0.7997,1839.4,1839.3,2.75789]
[1746302411989,1.08698,1839.5,1839.4,1.08701]
[1746302412190,3.65305,1839.6,1839.4,2.3922]
[1746302412499,1.08698,1839.5,1839.4,2.3922]
[1746302412998,3.65306,1839.6,1839.4,2.3922]
[1746302413202,1.08689,1839.7,1839.6,1.08692]
[1746302413399,1.08689,1839.7,1839.6,3.45132]
[1746302413703,2.79799,1839.7,1839.6,2.3644]
[1746302413995,2.79799,1839.7,1839.5,3.458]
[1746302414301,1.08692,1839.6,1839.5,3.458]
[1746302414498,2.78722,1839.6,1839.5,3.458]
[1746302416203,7.62547,1839.6,1839.2,4.0639]
[1746302416498,7.62547,1839.6,1839.3,3.458]
[1746302416499,1.08703,1839.4,1839.3,3.458]
[1746302416805,1.08709,1839.3,1839.2,3.2078]
[1746302417001,1.92889,1839.3,1839.2,6.6658]
[1746302417605,1.08727,1839.0,1838.9,3.2078]
[1746302417800,1.08733,1838.9,1838.8,16.08998948]
[1746302418006,1.08733,1838.9,1838.8,19.54798948]
[1746302418303,3.55231,1839.0,1838.8,20.63535948]
[1746302418503,3.55231,1839.0,1838.9,1.7413]
[1746302418704,3.55231,1839.0,1838.9,2.82863]
[1746302418907,1.08726,1839.1,1839.0,1.08727]
[1746302419105,1.08726,1839.1,1839.0,1.6509]
[1746302420901,1.08721,1839.1,1839.0,2.73815]
[1746302422212,1.08721,1839.1,1839.0,1.6509]
[1746302422708,1.08727,1839.0,1838.9,3.2078]
[1746302422911,1.08727,1839.0,1838.9,1.6143]
[1746302423609,1.08727,1839.0,1838.9,2.70163]
[1746302423910,1.08727,1839.0,1838.9,5.90943]
[1746302424109,1.08724,1839.1,1839.0,1.08727]
[1746302424498,1.6186,1839.3,1839.1,1.08721]
[1746302424703,2.70572,1839.3,1839.2,1.08715]
[1746302424900,1.08707,1839.4,1839.3,1.08709]
[1746302425705,1.08702,1839.5,1839.4,1.08702]
[1746302425904,1.08702,1839.5,1839.4,4.54402]
[1746302426711,1.08702,1839.5,1839.4,3.457]
[1746302426903,2.73552,1839.5,1839.4,3.457]
[1746302429810,1.08698,1839.5,1839.4,4.54403]
[1746302430403,1.0916673,1839.6,1839.5,1.08698]
[1746302430710,1.0916673,1839.6,1839.4,1.08699]
[1746302431012,1.08727,1839.0,1838.9,6.6648]
[1746302432116,2.75227,1839.0,1838.9,6.6648]
[1746302432914,2.75227,1839.0,1838.9,8.2492]
[1746302435209,1.665,1839.0,1838.9,9.33653]
[1746302435616,2.75227,1839.0,1838.9,9.33653]
[1746302436718,1.665,1839.0,1838.9,9.33653]
[1746302437118,1.665,1839.0,1838.9,6.12873]
[1746302437820,1.636,1839.1,1839.0,1.08727]
[1746302438020,1.636,1839.1,1839.0,2.69077]
[1746302438417,3.2078,1839.5,1839.0,4.8113]
[1746302438614,1.08706,1839.4,1839.3,1.08705]
[1746302439717,0.8762173,1839.6,1839.4,1.08703]
[1746302439918,1.9631673,1839.6,1839.5,1.08698]
[1746302440121,1.0916673,1839.6,1839.5,4.54398]
[1746302440720,1.0916673,1839.6,1839.5,6.18918]
[1746302441418,0.0047173,1839.6,1839.5,6.18918]
[1746302441620,1.0916373,1839.6,1839.5,6.18918]
[1746302443220,1.0916373,1839.6,1839.5,5.1022]
[1746302443520,2.8328373,1839.6,1839.5,4.2592]
[1746302446331,2.8328373,1839.6,1839.5,5.34618]
[1746302446826,1.0916373,1839.6,1839.5,5.34618]
[1746302447034,0.0047173,1839.6,1839.5,6.15698]
[1746302447629,1.0916373,1839.6,1839.5,2.69998]
[1746302447822,2.7862373,1839.6,1839.5,1.08698]
[1746302448228,2.7862373,1839.6,1839.5,1.89778]
[1746302449132,1.0916373,1839.6,1839.5,1.89778]
[1746302449334,0.0047173,1839.6,1839.5,1.89778]
[1746302449526,1.0916373,1839.6,1839.5,1.89778]
[1746302450736,1.0916373,1839.6,1839.5,0.8108]
[1746302451234,2.7645373,1839.6,1839.5,2.4686]
[1746302451935,1.08698,1839.5,1839.4,7.7518]
[1746302452135,2.75988,1839.5,1839.4,9.4096]
[1746302452335,2.75988,1839.5,1839.4,6.2018]
[1746302453239,1.08698,1839.5,1839.4,6.2018]
[1746302454838,1.0916773,1839.6,1839.5,1.08698]
[1746302455030,1.0916773,1839.6,1839.5,2.79308]
[1746302457538,0.0047173,1839.6,1839.4,3.2078]
[1746302457744,2.82838,1839.5,1839.4,3.2078]
[1746302457937,2.82838,1839.5,1839.4,6.6798]
[1746302458138,2.82838,1839.5,1839.4,8.4035]
[1746302458948,2.82838,1839.5,1839.4,9.49053]
[1746302460148,1.08698,1839.5,1839.4,9.49053]
[1746302460348,1.0916773,1839.6,1839.5,1.08698]
[1746302460548,1.0916773,1839.6,1839.5,2.75868]
[1746302462453,0.0047173,1839.6,1839.5,2.75868]
[1746302462853,1.0916373,1839.6,1839.5,2.75868]
[1746302464253,0.0047173,1839.6,1839.5,2.75868]
[1746302464646,1.0916373,1839.6,1839.5,2.75868]
[1746302466554,1.0916373,1839.6,1839.5,1.6717]
[1746302467261,1.08698,1839.5,1839.4,4.29483]
[1746302467554,1.08698,1839.5,1839.4,7.76683]
[1746302467759,3.64208,1839.5,1839.4,7.76683]
[1746302468058,3.64208,1839.5,1839.4,9.48903]
[1746302472357,1.92768,1839.5,1839.4,9.48903]
[1746302472552,1.08698,1839.5,1839.4,9.48903]
[1746302472961,1.0916573,1839.6,1839.5,1.08698]
[1746302473260,1.0916573,1839.6,1839.5,2.73168]
[1746302476266,2.8198573,1839.6,1839.5,2.73168]
[1746302485969,2.8198573,1839.6,1839.5,1.6447]
[1746302486569,2.8198573,1839.6,1839.5,2.73168]
[1746302487173,2.8198573,1839.6,1839.5,1.6447]
[1746302487473,1.08698,1839.5,1839.4,10.73199829]
[1746302487771,1.95948,1839.5,1839.4,10.73199829]
[1746302487970,3.67778,1839.5,1839.4,10.73199829]
[1746302488962,3.67778,1839.5,1839.4,11.81902829]
[1746302489167,3.67778,1839.5,1839.4,10.73199829]
[1746302489675,3.67778,1839.5,1839.4,11.81902829]
[1746302489972,3.67778,1839.5,1839.4,13.41522829]
[1746302490568,2.80528,1839.5,1839.4,13.41522829]
[1746302490775,1.08698,1839.5,1839.4,2.68323]
[1746302491174,1.08698,1839.5,1839.4,4.37883]
[1746302493077,4.80498,1839.5,1839.4,4.37883]
[1746302497877,4.80498,1839.5,1839.4,15.03274934]
[1746302502383,4.80498,1839.5,1839.4,12.25011934]
[1746302502572,4.80498,1839.5,1839.4,10.65391934]
[1746302503980,4.80498,1839.5,1839.4,3.457]
[1746302506980,9.80498,1839.5,1839.4,3.457]
[1746302507384,11.50988,1839.5,1839.4,3.457]
[1746302507585,6.50988,1839.5,1839.4,3.457]
[1746302508285,1.08703,1839.4,1839.3,7.19691934]
[1746302508486,4.45503,1839.4,1839.3,7.19691934]
[1746302509287,8.17303,1839.4,1839.3,7.19691934]
[1746302512085,8.17303,1839.4,1839.2,15.68119829]
[1746302512086,1.08709,1839.3,1839.2,4.9492]
[1746302513192,4.80509,1839.3,1839.2,4.9492]
[1746302513788,4.80509,1839.3,1839.2,1.7414]
[1746302516795,6.42169,1839.3,1839.2,1.7414]
[1746302520101,4.80509,1839.3,1839.2,1.7414]
[1746302520801,4.80509,1839.3,1839.2,2.82855]
[1746302521603,4.80509,1839.3,1839.2,1.7414]
[1746302522401,4.80509,1839.3,1839.2,2.82855]
[1746302522905,4.80509,1839.3,1839.2,1.7414]
[1746302524305,4.80509,1839.3,1839.2,2.82855]